Workbook

Sheet Grupo_1__Grades
B2: PROJETO: | C2: PROJETO DE IRRIGAÇÃO BAIXIO DE IRECÊ
B3: LOCAL: | C3: XIQUE-XIQUE / BA
B4: CLIENTE: | C4: CODEVASF
C5: PLANILHA DE FORNECIMENTO (GRUPO 1)
B6: ITEM | C6: DESCRIÇÃO | D6: CÓDIGO CATMAT | E6: ESPEC TÉCN | F6: UNID | G6: QUANT | H6: PÇ UNITÁRIO | I6: PÇ TOTAL
C7: FORNECIMENTO DE GRADES
B8: 1 | C8: TE-10 - GRADE METÁLICA PARA DETENÇÃO DE SÓLIDOS ( 1,38 x 1,50 ) + ( 1,38 x 1,78 ) 4,53 m^2 | D8: 126756 | E8: ET-1A-07-180 | F8: un. | G8: 1 | H8: 19366 | I8: =ROUND((G8*H8),2) -> 19366
B9: 2 | C9: TE-12 - GRADE METÁLICA PARA DETENÇÃO DE SÓLIDOS ( 1,38 x 1,50 ) + ( 1,38 x 1,90 ) 4,69 m^2 | D9: 126756 | E9: ET-1A-07-180 | F9: un. | G9: 1 | H9: 19866 | I9: 19866
B10: 3 | C10: TE-14 - GRADE METÁLICA PARA DETENÇÃO DE SÓLIDOS ( 1,18 x 1,50 ) + ( 1,18 x 1,70 ) 3,78 m^2 | D10: 126756 | E10: ET-1A-07-180 | F10: un. | G10: 1 | H10: 17386 | I10: 17386
C11: VALOR TOTAL DA PLANILHA | I11: =SUM(I8:I10) -> 56618
B13: Obs.: No preço total estão inclusas todas as despesas de fabricação, testes, manuais e fornecimento do insumos no canteiro obras.

Sheet Grupo_2_Registro_valvu__vent
B2: PROJETO: | C2: PROJETO DE IRRIGAÇÃO BAIXIO DE IRECÊ
B3: LOCAL: | C3: XIQUE-XIQUE / BA
B4: CLIENTE: | C4: CODEVASF
C5: PLANILHA DE FORNECIMENTO (GRUPO 2)
B6: ITEM | C6: DESCRIÇÃO | D6: CÓDIGO CATMAT | E6: ESPEC TÉCN | F6: UNID | G6: QUANT | H6: PÇ UNITÁRIO | I6: PÇ TOTAL
C7: FORNECIMENTO DE REGISTROS E VENTOSAS
B8: 4 | C8: REGISTRO DE GAVETA CHATO C/ FLANGES E CABECOTE FOFO DN 100 | D8: 150710 | E8: ET-1A-07-400 | F8: pç | G8: 18 | H8: 611.4 | I8: =ROUND((G8*H8),2) -> 11005.2
B9: 5 | C9: KIT REGISTRO DE GAVETA C/ BOLSAS E CUNHA BORRACHA C/ CABECOTE DN 300 FOFO, COM CABEÇOTE PARA CHAVE T, CHAVE T, TAMPA REDONDA DN 100 MM E TOCO FOFO COM PONTAS DN 100 MM L= 0,65 M | D9: 150710 | E9: ET-1A-07-400 e 1552-D-ADU-HID-14-04 | F9: pç | G9: 2 | H9: 6312.07 | I9: 12624.14
B10: 6 | C10: KIT REGISTRO OVAL C/ BOLSAS E CUNHA METALICA C/ CABECOTE DN 400 FOFO , COM CABEÇOTE PARA CHAVE T, CHAVE T, TAMPA REDONDA DN 100 MM E TOCO FOFO COM PONTAS DN 100 MM L= 0,4M | D10: 150710 | E10: ET-1A-07-400 e 1552-D-ADU-HID-14-04 | F10: pç | G10: 1 | H10: 16634.18 | I10: 16634.18
B11: 7 | C11: KIT REGISTRO OVAL C/ BOLSAS E CUNHA METALICA C/ CABECOTE DN 600 FOFO , COM CABEÇOTE PARA CHAVE T, CHAVE T, TAMPA REDONDA DN 100 MM E TOCO FOFO COM PONTAS DN 100 MM L= | D11: 150710 | E11: ET-1A-07-400 e 1552-D-ADU-HID-14-04 | F11: pç | G11: 1 | H11: 54734.37 | I11: 54734.37
B12: 8 | C12: VENTOSA TRIPLICE FUNCAO C/ FLANGES PN 10 FOFO DN 100 | D12: 301172 | E12: ET-1A-07-400 | F12: pç | G12: 14 | H12: 2051.76 | I12: 28724.64
B13: 9 | C13: REGISTRO DE GAVETA C/ ROSCA FEMEA BRONZE DN 2" ( 50 mm ) | D13: 150710 | E13: ET-1A-07-400 | F13: pç | G13: 4 | H13: 240.94 | I13: =ROUND((G13*H13),2) -> 963.76
B14: 10 | C14: REGISTRO DE GAVETA CHATO C/ FLANGES E CABECOTE FOFO DN 150 | D14: 150710 | E14: ET-1A-07-400 | F14: pç | G14: 44 | H14: 1386.86 | I14: =ROUND((G14*H14),2) -> 61021.84
B15: 11 | C15: REGISTRO DE GAVETA C/ ROSCA FEMEA BRONZE DN 1" ( 25 mm ) | D15: 150710 | E15: ET-1A-07-400 | F15: pç | G15: 45 | H15: 190.55 | I15: 8574.75
B16: 12 | C16: VENTOSA SIMPLES C/ ROSCA FEMEA PVC DN 1" | D16: 301172 | E16: ET-1A-07-400 | F16: pç | G16: 44 | H16: 557.81 | I16: 24543.64
B17: 13 | C17: KIT REGISTRO DE GAVETA C/ BOLSAS E CUNHA BORRACHA C/ CABECOTE DN 150 FOFO , COM CABEÇOTE PARA CHAVE T, CHAVE T, TAMPA REDONDA DN 100 MM E TOCO FOFO COM PONTAS DN 100 MM L=0,8M | D17: 150710 | E17: ET-1A-07-400 1552-D-ADU-HID-17-02 | F17: pç | G17: 1 | H17: 1826.4 | I17: =ROUND((G17*H17),2) -> 1826.4
B18: 14 | C18: REGISTRO DE GAVETA CHATO C/ FLANGES E CABECOTE FOFO DN 50 | D18: 150710 | E18: ET-1A-07-400 | F18: pç | G18: 3 | H18: 370.85 | I18: =ROUND((G18*H18),2) -> 1112.55
B19: 15 | C19: VENTOSA TRIPLICE FUNCAO C/ FLANGES PN 10 FOFO DN 50 | D19: 301172 | E19: ET-1A-07-400 | F19: pç | G19: 2 | H19: 1076.54 | I19: 2153.08
B20: 16 | C20: KIT REGISTRO DE GAVETA C/ BOLSAS E CUNHA BORRACHA C/ CABECOTE DN 400 FOFO , COM CABEÇOTE PARA CHAVE T, CHAVE T, TAMPA REDONDA DN 100 MM E TOCO FOFO COM PONTAS DN 100 MM L= 0,5M | D20: 150710 | E20: ET-1A-07-400 e 1552-D-ADU-HID-14-04 | F20: pç | G20: 3 | H20: 15041.57 | I20: =ROUND((G20*H20),2) -> 45124.71
B21: 17 | C21: KIT REGISTRO DE GAVETA C/ BOLSAS E CUNHA BORRACHA C/ CABECOTE DN 600 FOFO , COM CABEÇOTE PARA CHAVE T, CHAVE T, TAMPA REDONDA DN 100 MM | D21: 150710 | E21: ET-1A-07-400 e 1552-D-ADU-HID-14-04 | F21: pç | G21: 1 | H21: 42274.19 | I21: 42274.19
B22: 18 | C22: FLANGE C/ SEXTAVADO FOGO P/ PN10 DN 50 | D22: 75426 | E22: ET-1A-07-300 | F22: pç | G22: 6 | H22: 48.86 | I22: =ROUND((G22*H22),2) -> 293.16
B23: 19 | C23: TUBO C/ ROSCAS FOGO DN 50 L=1,50M | D23: 75426 | E23: ET-1A-07-300 | F23: pç | G23: 7 | H23: 236.43 | I23: 1655.01
B24: 20 | C24: NIPLE DUPLO FOGO DN 1" | D24: 214170 | E24: ET-1A-07-300 | F24: pç | G24: 45 | H24: 6.7 | I24: 301.5
B25: 21 | C25: LUVA REDUCAO C/ ROSCAS FOGO DN 2"x1" | D25: 75426 | E25: ET-1A-07-300 | F25: pç | G25: 1 | H25: 24.67 | I25: 24.67
B26: 22 | C26: NIPLE DUPLO FOGO DN 2" | D26: 214173 | E26: ET-1A-07-300 | F26: pç | G26: 1 | H26: 18.32 | I26: 18.32
B27: 23 | C27: TUBO C/ ROSCAS FOGO DN 50 L=1,00M | D27: 75426 | E27: ET-1A-07-300 | F27: pç | G27: 1 | H27: 176.58 | I27: 176.58
B28: 24 | C28: VALVULA BORBOLETA WAFER C/ CABECOTE FOFO DN 200 | D28: 150526 | E28: ET-1A-07-400 | F28: pç | G28: 1 | H28: 2191 | I28: 2191
C29: VALOR TOTAL DA PLANILHA | I29: =SUM(I8:I28) -> 315977.69
B31: Obs.: No preço total estão inclusas todas as despesas de fabricação, testes, manuais e fornecimento do insumos no canteiro obras.

Sheet Grupo_3_válvulas_control
B2: PROJETO: | C2: PROJETO DE IRRIGAÇÃO BAIXIO DE IRECÊ
B3: LOCAL: | C3: XIQUE-XIQUE / BA
B4: CLIENTE: | C4: CODEVASF
C5: PLANILHA DE FORNECIMENTO (GRUPO 3)
B6: ITEM | C6: DESCRIÇÃO | D6: CÓDIGO CATMAT | E6: ESPEC TÉCN | F6: UNID | G6: QUANT | H6: PÇ UNITÁRIO | I6: PÇ TOTAL
C7: FORNECIMENTO DE VALVULAS
B8: 25 | C8: VALVULA LIMITADORA DE VAZAO C/ FLANGES FOFO DN 80 | D8: 39314 | E8: ET-1A-07-310 | F8: pç | G8: 33 | H8: 5775.73 | I8: =ROUND((G8*H8),2) -> 190599.09
B9: 26 | C9: VALVULA LIMITADORA DE VAZAO C/ FLANGES FOFO DN 200 | D9: 39314 | E9: ET-1A-07-310 | F9: pç | G9: 1 | H9: 8500 | I9: =ROUND((G9*H9),2) -> 8500
C10: VALOR TOTAL DA PLANILHA | I10: =SUM(I8:I9) -> 199099.09
B12: Obs.: No preço total estão inclusas todas as despesas de fabricação, testes, manuais e fornecimento do insumos no canteiro obras.

Sheet Item_27_Hidrometro
B2: PROJETO: | C2: PROJETO DE IRRIGAÇÃO BAIXIO DE IRECÊ
B3: LOCAL: | C3: XIQUE-XIQUE / BA
B4: CLIENTE: | C4: CODEVASF
C5: PLANILHA DE FORNECIMENTO
B6: ITEM | C6: DESCRIÇÃO | D6: CÓDIGO CATMAT | E6: ESPEC TÉCN | F6: UNID | G6: QUANT | H6: PÇ UNITÁRIO | I6: PÇ TOTAL
C7: FORNECIMENTO DE HIDROMETROS
B8: 27 | C8: HIDROMETRO C/ TURBINA TANGENCIAL HORIZONTAL DN 3", C/ FLANGES | D8: 26395 | E8: ET-1A-07-160 | F8: pç | G8: 33 | H8: 1840 | I8: =ROUND((G8*H8),2) -> 60720
C9: VALOR TOTAL DA PLANILHA | I9: =SUM(I8:I8) -> 60720
B11: Obs.: No preço total estão inclusas todas as despesas de fabricação, testes, manuais e fornecimento do insumos no canteiro obras.

Sheet Item_28_Tampa
B2: PROJETO: | C2: PROJETO DE IRRIGAÇÃO BAIXIO DE IRECÊ
B3: LOCAL: | C3: XIQUE-XIQUE / BA
B4: CLIENTE: | C4: CODEVASF
C5: PLANILHA DE FORNECIMENTO
B6: ITEM | C6: DESCRIÇÃO | D6: CÓDIGO CATMAT | E6: ESPEC TÉCN | F6: UNID | G6: QUANT | H6: PÇ UNITÁRIO | I6: PÇ TOTAL
C7: FORNECIMENTO DE TAMPAS
B8: 28 | C8: TAMPA CHAPA XADREZ 1,00x1,45mx6,3mm C/ DOBRADIÇAS E CADEADO | D8: 126594 | E8: 1552-D-ADU-HID-26-05 | F8: unid | G8: =121-30-9 -> 82 | H8: 1889.76 | I8: =ROUND((G8*H8),2) -> 154960.32
C9: VALOR TOTAL DA PLANILHA | I9: =SUM(I8:I8) -> 154960.32
B11: Obs.: No preço total estão inclusas todas as despesas de fabricação, testes, manuais e fornecimento do insumos no canteiro obras.

Sheet Grupo_4_peças_de_FoFo
B2: PROJETO: | C2: PROJETO DE IRRIGAÇÃO BAIXIO DE IRECÊ
B3: LOCAL: | C3: XIQUE-XIQUE / BA
B4: CLIENTE: | C4: CODEVASF
C5: PLANILHA DE FORNECIMENTO (GRUPO 4)
B6: ITEM | C6: DESCRIÇÃO | D6: CÓDIGO CATMAT | E6: ESPEC TÉCN | F6: UNID | G6: QUANT | H6: PÇ UNITÁRIO | I6: PÇ TOTAL
C7: FORNECIMENTO DE PEÇAS DE FOFO
B8: 29 | C8: REDUCAO PONTA E BOLSA JE FOFO 200x150 | D8: 38580 | E8: ET-1A-07-300 | F8: pç | G8: 14 | H8: 293.38 | I8: =ROUND((G8*H8),2) -> 4107.32
B9: 30 | C9: REDUCAO PONTA E BOLSA JE FOFO 250x150 | D9: 38580 | E9: ET-1A-07-300 | F9: pç | G9: 1 | H9: 393.62 | I9: =ROUND((G9*H9),2) -> 393.62
B10: 31 | C10: REDUCAO PONTA E BOLSA JE FOFO 300x150 | D10: 38580 | E10: ET-1A-07-300 | F10: pç | G10: =8-1 -> 7 | H10: 472.92 | I10: 3310.44
B11: 32 | C11: REDUCAO PONTA E BOLSA JE FOFO 300x250 | D11: 38580 | E11: ET-1A-07-300 | F11: pç | G11: =4-2 -> 2 | H11: 544.74 | I11: 1089.48
B12: 33 | C12: CURVA 45 FOFO C/ BOLSAS PN10 DN 600 | D12: 38580 | E12: ET-1A-07-300 | F12: pç | G12: 2 | H12: 5014.48 | I12: 10028.96
B13: 34 | C13: TUBO FOFO C/ PONTA E FLANGE PN10 DN 600 L=4,00 m | D13: 38580 | E13: ET-1A-07-300 | F13: pç | G13: 1 | H13: 9560.16 | I13: 9560.16
B14: 35 | C14: TUBO FOFO C/ PONTAS PN10 DN 600 L=4,45 m | D14: 38580 | E14: ET-1A-07-300 | F14: pç | G14: 1 | H14: 10285.55 | I14: 10285.55
B15: 36 | C15: TUBO FOFO C/ PONTA E BOLSA PN10 DN 600 L=6,00 m | D15: 38580 | E15: ET-1A-07-300 | F15: pç | G15: 5 | H15: 9825.16 | I15: 49125.8
B16: 37 | C16: TUBO FOFO C/ PONTAS PN10 DN 600 L=6,00 m | D16: 38580 | E16: ET-1A-07-300 | F16: pç | G16: 1 | H16: 12013.12 | I16: 12013.12
B17: 38 | C17: TE C/ BOLSAS JGS E FLANGE PN-10 DN 300x100 FOFO | D17: 38580 | E17: ET-1A-07-300 | F17: pç | G17: 4 | H17: 981.88 | I17: 3927.52
B18: 39 | C18: TE C/ BOLSAS JGS E FLANGE PN-10 DN 400x100 FOFO | D18: 38580 | E18: ET-1A-07-300 | F18: pç | G18: 2 | H18: 1435.78 | I18: 2871.56
B19: 40 | C19: TE C/ BOLSAS JGS E FLANGE PN-10 DN 600x100 FOFO | D19: 38580 | E19: ET-1A-07-300 | F19: pç | G19: 1 | H19: 3604.37 | I19: 3604.37
B20: 41 | C20: TUBO C/ FLANGES FOFO PN10 DN 100 L=1,25 m | D20: 38580 | E20: ET-1A-07-300 | F20: pç | G20: 2 | H20: 1001.86 | I20: 2003.72
B21: 42 | C21: TUBO C/ FLANGES FOFO PN10 DN 100 L=1,26 m | D21: 38580 | E21: ET-1A-07-300 | F21: pç | G21: 5 | H21: 1109.68 | I21: 5548.4
B22: 43 | C22: TOCO C/ PONTAS L=0,40M FOFO DN 100 | D22: 38580 | E22: ET-1A-07-300 | F22: pç | G22: 1 | H22: 213.76 | I22: 213.76
B23: 44 | C23: TUBO FOFO C/ PONTAS PN10 DN 100 L=0,65 m | D23: 38580 | E23: ET-1A-07-300 | F23: pç | G23: 1 | H23: 561.6 | I23: 561.6
B24: 45 | C24: TUBO C/ FLANGES FOFO PN10 DN 100 L=1,00 m | D24: 38580 | E24: ET-1A-07-300 | F24: pç | G24: 6 | H24: 904.76 | I24: 5428.56
B25: 46 | C25: TE C/ 2 BOLSAS E FLANGE, PN10 FOFO DN 150X50 mm | D25: 38580 | E25: ET-1A-07-300 | F25: pç | G25: 3 | H25: 367.69 | I25: 1103.07
B26: 47 | C26: TE C/ 2 BOLSAS E FLANGE, PN10 FOFO DN 200X50 mm | D26: 38580 | E26: ET-1A-07-300 | F26: pç | G26: 3 | H26: 496.43 | I26: 1489.29
B27: 48 | C27: TUBO C/ FLANGES FOFO PN10 DN 100 L=1,50 m | D27: 38580 | E27: ET-1A-07-300 | F27: pç | G27: 4 | H27: 1054.38 | I27: 4217.52
B28: 49 | C28: CURVA C90 C/ FLANGES PN-10 FOFO DN 150 | D28: 38580 | E28: ET-1A-07-300 | F28: pç | G28: 45 | H28: 380.15 | I28: 17106.75
B29: 50 | C29: EXTREMIDADE FLANGE E BOLSA FOFO DN 150 | D29: 38580 | E29: ET-1A-07-300 | F29: pç | G29: 44 | H29: 236.75 | I29: 10417
B30: 51 | C30: FLANGE CEGO FOFO DN 150 | D30: 38580 | E30: ET-1A-07-300 | F30: pç | G30: 44 | H30: 150.37 | I30: 6616.28
B31: 52 | C31: TE C/ FLANGES PN-10 FOFO DN 150X150 | D31: 38580 | E31: ET-1A-07-300 | F31: pç | G31: 44 | H31: 516.35 | I31: 22719.4
B32: 53 | C32: TUBO C/ FLANGES FOFO PN 10 DN 150 L=0,70m | D32: 38580 | E32: ET-1A-07-300 | F32: pç | G32: 36 | H32: 1036.37 | I32: 37309.32
B33: 54 | C33: TUBO C/ FLANGES FOFO PN10 DN 150 L=0,80 m | D33: 38580 | E33: ET-1A-07-300 | F33: pç | G33: 44 | H33: 1162.66 | I33: 51157.04
B34: 55 | C34: TOCO C/ FLANGES L=0,25M FOFO DN 80 | D34: 38580 | E34: ET-1A-07-300 | F34: pç | G34: 33 | H34: 255.32 | I34: 8425.56
B35: 56 | C35: TUBO C/ FLANGES FOFO PN10 DN 80 L=0,70 m | D35: 38580 | E35: ET-1A-07-300 | F35: pç | G35: 74 | H35: 772.09 | I35: 57134.66
B36: 57 | C36: CAP C/ JE JGS FOFO DN 150 | D36: 38580 | E36: ET-1A-07-300 | F36: pç | G36: 1 | H36: 141.88 | I36: 141.88
B37: 58 | C37: COLAR DE TOMADA C/ FEMEA DN 2" FOFO DN 150 | D37: 38580 | E37: ET-1A-07-300 | F37: pç | G37: 1 | H37: 61.65 | I37: 61.65
B38: 59 | C38: TUBO FOFO C/ PONTAS PN10 DN 100 L=0,80 m | D38: 38580 | E38: ET-1A-07-300 | F38: pç | G38: 1 | H38: 267.67 | I38: 267.67
B39: 60 | C39: CURVA C90 C/ FLANGES PN-10 FOFO DN 200 | D39: 38580 | E39: ET-1A-07-300 | F39: pç | G39: 2 | H39: 527.44 | I39: 1054.88
B40: 61 | C40: EXTREMIDADE FLANGE E BOLSA JGS FOFO DN 200 | D40: 38580 | E40: ET-1A-07-300 | F40: pç | G40: 1 | H40: 345.92 | I40: 345.92
B41: 62 | C41: REDUCAO PONTA E BOLSA JE FOFO 300x200 | D41: 38580 | E41: ET-1A-07-300 | F41: pç | G41: 1 | H41: 499.36 | I41: 499.36
B42: 63 | C42: TE C/ FLANGES PN-10 FOFO DN 200X50 | D42: 38580 | E42: ET-1A-07-300 | F42: pç | G42: 1 | H42: 666.38 | I42: 666.38
B43: 64 | C43: TOCO C/ PONTAS L=0,50M FOFO DN 200 | D43: 38580 | E43: ET-1A-07-300 | F43: pç | G43: 1 | H43: 536.52 | I43: 536.52
B44: 65 | C44: TUBO C/ FLANGES FOFO PN 10 DN 200 L=0,70m | D44: 38580 | E44: ET-1A-07-300 | F44: pç | G44: 2 | H44: 1315.69 | I44: 2631.38
B45: 66 | C45: TUBO C/ FLANGES FOFO PN 10 DN 200 L=1,10m | D45: 38580 | E45: ET-1A-07-300 | F45: pç | G45: 1 | H45: 1555.65 | I45: 1555.65
B46: 67 | C46: LUVA DE CORRER COM BOLSAS FOFO DN 300 | D46: 38580 | E46: ET-1A-07-300 | F46: pç | G46: 1 | H46: 613.42 | I46: 613.42
B47: 68 | C47: REDUCAO PONTA E BOLSA JE FOFO 600x500 | D47: 38580 | E47: ET-1A-07-300 | F47: pç | G47: 1 | H47: 3470 | I47: 3470
B48: 69 | C48: TUBO C/ FLANGES FOFO PN10 DN 100 L=1,24 m | D48: 38580 | E48: ET-1A-07-300 | F48: pç | G48: 1 | H48: 1030.32 | I48: 1030.32
B49: 70 | C49: REDUCAO PONTA E BOLSA JE FOFO 400x300 | D49: 38580 | E49: ET-1A-07-300 | F49: pç | G49: 1 | H49: 1011.56 | I49: 1011.56
B50: 71 | C50: Toco c/ pontas pn 10 L= 0,5 m FoFo DN 100 | D50: 38580 | E50: ET-1A-07-300 | F50: un. | G50: 2 | H50: 261.74 | I50: 523.48
B51: 72 | C51: FLANGE CEGO AÇO CARBONO #1/2" DN 150 PN 10 COM ORÍFÍCO COM ROSCA DN 25 | D51: 100420 | E51: ET-1A-500-01 | F51: pç | G51: =45-1 -> 44 | H51: 1252.68 | I51: 55117.92
C52: VALOR TOTAL DA PLANILHA | I52: =SUM(I8:I51) -> 411297.82
B54: Obs.: No preço total estão inclusas todas as despesas de fabricação, testes, manuais e fornecimento do insumos no canteiro obras.

Sheet Grupo_5_peças_de_PVC
B2: PROJETO: | C2: PROJETO DE IRRIGAÇÃO BAIXIO DE IRECÊ
B3: LOCAL: | C3: XIQUE-XIQUE / BA
B4: CLIENTE: | C4: CODEVASF
C5: PLANILHA DE FORNECIMENTO (GRUPO 5)
B6: ITEM | C6: DESCRIÇÃO | D6: CÓDIGO CATMAT | E6: ESPEC TÉCN | F6: UNID | G6: QUANT | H6: PÇ UNITÁRIO | I6: PÇ TOTAL
C7: FORNECIMENTO DE PEÇAS DE PVC
B8: 73 | C8: TUBO PVC DEFOFO PN 60 JEI DN 150 | D8: 38814 | E8: ET-1A-07-300 | F8: m | G8: 396 | H8: 74.15 | I8: =ROUND((G8*H8),2) -> 29363.4
B9: 74 | C9: TUBO PVC DEFOFO PN 60 JEI DN 200 | D9: 274244 | E9: ET-1A-07-300 | F9: m | G9: 775 | H9: 92 | I9: =ROUND((G9*H9),2) -> 71300
B10: 75 | C10: TUBO PVC DEFOFO PN 60 JEI DN 250 | D10: 274244 | E10: ET-1A-07-300 | F10: m | G10: 539 | H10: 145.66 | I10: =ROUND((G10*H10),2) -> 78510.74
B11: 76 | C11: TUBO PVC DEFOFO PN 60 JEI DN 300 | D11: 274243 | E11: ET-1A-07-300 | F11: m | G11: 2368 | H11: 189.34 | I11: =ROUND((G11*H11),2) -> 448357.12
B12: 77 | C12: TOCO C/ PONTAS PVC DEFOFO L=0,50m DN 150 PN 60 | D12: 38814 | E12: ET-1A-07-300 | F12: pç | G12: 8 | H12: 95 | I12: =ROUND((G12*H12),2) -> 760
B13: 78 | C13: TOCO C/ PONTAS PVC DEFOFO L=0,50m DN 200 PN 60 | D13: 274244 | E13: ET-1A-07-300 | F13: pç | G13: 1 | H13: 148.5 | I13: 148.5
B14: 79 | C14: TOCO C/ PONTAS PVC DEFOFO L=0,50m DN 250 PN 60 | D14: 274244 | E14: ET-1A-07-300 | F14: pç | G14: 2 | H14: 174.4 | I14: 348.8
B15: 80 | C15: TUBO PONTA E BOLSA JE PVC DEFOFO L=3,00 m DN 150 PN 60 | D15: 38814 | E15: ET-1A-07-300 | F15: pç | G15: 20 | H15: 208.4 | I15: 4168
B16: 81 | C16: TUBO PONTA E BOLSA JE PVC DEFOFO L=6,00 m DN 150 PN 60 | D16: 38814 | E16: ET-1A-07-300 | F16: pç | G16: 12 | H16: 389.3 | I16: 4671.6
B17: 82 | C17: TUBO C/ PONTAS PVC DEFOFO L=3,00m DN 150 PN 60 | D17: 38814 | E17: ET-1A-07-300 | F17: pç | G17: 11 | H17: 234.35 | I17: 2577.85
B18: 83 | C18: TUBO C/ PONTAS PVC DEFOFO L=6,00m DN 150 PN 60 | D18: 38814 | E18: ET-1A-07-300 | F18: pç | G18: 5 | H18: 441.25 | I18: 2206.25
B19: 84 | C19: TOCO C/ PONTAS PVC DEFOFO L=0,50m DN 300 PN 60 | D19: 274243 | E19: ET-1A-07-300 | F19: pç | G19: 4 | H19: 200 | I19: =ROUND((G19*H19),2) -> 800
B20: 85 | C20: TUBO C/ PONTAS PVC DEFOFO L=1,50m DN 300 PN 60 | D20: 274243 | E20: ET-1A-07-300 | F20: pç | G20: 1 | H20: 300 | I20: 300
B21: 86 | C21: TUBO PONTA E BOLSA JE PVC DEFOFO L=1,00 m DN 300 PN 60 | D21: 38814 | E21: ET-1A-07-300 | F21: pç | G21: 1 | H21: 260.34 | I21: 260.34
B22: 87 | C22: TUBO C/ PONTAS PVC DEFOFO L=2,00m DN 150 PN 60 | D22: 38814 | E22: ET-1A-07-300 | F22: pç | G22: 1 | H22: 162.5 | I22: =ROUND((G22*H22),2) -> 162.5
B23: 88 | C23: TOCO C/ PONTAS PVC DEFOFO L=0,40m DN 100 PN 60 | D23: 38814 | E23: ET-1A-07-300 | F23: pç | G23: 1 | H23: 43.75 | I23: =ROUND((G23*H23),2) -> 43.75
C24: VALOR TOTAL DA PLANILHA | I24: =SUM(I8:I23) -> 643978.85
B26: Obs.: No preço total estão inclusas todas as despesas de fabricação, testes, manuais e fornecimento do insumos no canteiro obras.

Sheet Grupo_6_peças_de_PRFV
B2: PROJETO: | C2: PROJETO DE IRRIGAÇÃO BAIXIO DE IRECÊ
B3: LOCAL: | C3: XIQUE-XIQUE / BA
B4: CLIENTE: | C4: CODEVASF
C5: PLANILHA DE FORNECIMENTO (GRUPO 6)
B6: ITEM | C6: DESCRIÇÃO | D6: CÓDIGO CATMAT | E6: ESPEC TÉCN | F6: UNID | G6: QUANT | H6: PÇ UNITÁRIO | I6: PÇ TOTAL
C7: FORNECIMENTO DE PEÇAS DE PRFV
B8: 89 | C8: TUBO PRFV AGUA PN10 DN 400 | D8: 465086 | E8: ET-1A-07-300 | F8: m | G8: 1401 | H8: 333.73 | I8: =ROUND((G8*H8),2) -> 467555.73
B9: 90 | C9: TUBO PRFV AGUA PN10 DN 600 | D9: 465086 | E9: ET-1A-07-300 | F9: m | G9: 1526 | H9: 629.38 | I9: 960433.88
B10: 91 | C10: CRUZETA XR PRFV/JE PBPP 250x150 PN10 | D10: 465086 | E10: ET-1A-07-300 | F10: pç | G10: 1 | H10: 1239.57 | I10: 1239.57
B11: 92 | C11: CRUZETA PRFV JE BOLSA E PONTAS 300x150 PN10 | D11: 465086 | E11: ET-1A-07-300 | F11: pç | G11: 2 | H11: 1432.39 | I11: 2864.78
B12: 93 | C12: CURVA PRFV 45º BOLSA JE E PONTA DN 150 PN10 | D12: 465086 | E12: ET-1A-07-300 | F12: pç | G12: 3 | H12: 435 | I12: 1305
B13: 94 | C13: CURVA PRFV 45º BOLSA JE E PONTA DN 200 PN10 | D13: 465086 | E13: ET-1A-07-300 | F13: pç | G13: 1 | H13: 496 | I13: 496
B14: 95 | C14: CURVA PRFV 45º BOLSA JE E PONTA DN 300 PN10 | D14: 465086 | E14: ET-1A-07-300 | F14: pç | G14: 1 | H14: 725 | I14: 725
B15: 96 | C15: LUVA DE CORRER PRFV DN 200 PN10 | D15: 465086 | E15: ET-1A-07-300 | F15: pç | G15: =8-4 -> 4 | H15: 280.12 | I15: 1120.48
B16: 97 | C16: LUVA DE CORRER PRFV DN 300 PN10 | D16: 465086 | E16: ET-1A-07-300 | F16: pç | G16: =4-1 -> 3 | H16: 442.62 | I16: 1327.86
B17: 98 | C17: REDUCAO PRFV JE BOLSA E PONTA 300x200 PN10 | D17: 465086 | E17: ET-1A-07-300 | F17: pç | G17: 3 | H17: 896.1 | I17: 2688.3
B18: 99 | C18: REDUCAO PRFV JE BOLSA E PONTA 400x300 PN10 | D18: 465086 | E18: ET-1A-07-300 | F18: pç | G18: =5-2 -> 3 | H18: 1334.13 | I18: 4002.39
B19: 100 | C19: REDUCAO PRFV JE BOLSA E PONTA 500x400 PN10 | D19: 465086 | E19: ET-1A-07-300 | F19: pç | G19: =6-1 -> 5 | H19: 1873.18 | I19: 9365.9
B20: 101 | C20: REDUCAO PRFV JE BOLSA E PONTA 600x500 PN10 | D20: 465086 | E20: ET-1A-07-300 | F20: pç | G20: 1 | H20: 2282 | I20: 2282
B21: 102 | C21: TE PRFV JE BOLSAS E PONTA 300x200 PN10 | D21: 465086 | E21: ET-1A-07-300 | F21: pç | G21: =8-1 -> 7 | H21: 1114.1 | I21: 7798.7
B22: 103 | C22: TE PRFV JE BOLSAS E PONTA 400x200 PN10 | D22: 465086 | E22: ET-1A-07-300 | F22: pç | G22: 1 | H22: 1432.88 | I22: 1432.88
B23: 104 | C23: TE PRFV JE BOLSAS E PONTA 500x300 PN10 | D23: 465086 | E23: ET-1A-07-300 | F23: pç | G23: =4-1 -> 3 | H23: 2179 | I23: 6537
B24: 105 | C24: TE PRFV JE BOLSAS E PONTA 600x300 PN10 | D24: 465086 | E24: ET-1A-07-300 | F24: pç | G24: 3 | H24: 2903 | I24: 8709
B25: 106 | C25: TE PRFV JE BOLSAS E PONTA 600x400 PN10 | D25: 465086 | E25: ET-1A-07-300 | F25: pç | G25: 1 | H25: 3289 | I25: 3289
B26: 107 | C26: TOCO C/ PONTAS PRFV L=0,50m DN 400 PN10 | D26: 465086 | E26: ET-1A-07-300 | F26: pç | G26: =10-1 -> 9 | H26: 747.7 | I26: =ROUND((G26*H26),2) -> 6729.3
B27: 108 | C27: TOCO C/ PONTAS PRFV L=0,50m DN 600 PN10 | D27: 465086 | E27: ET-1A-07-300 | F27: pç | G27: 4 | H27: 1098.04 | I27: 4392.16
B28: 109 | C28: TUBO JE C/ PONTA E BOLSA PRFV L=1,0m DN 600 PN10 | D28: 465086 | E28: ET-1A-07-300 | F28: pç | G28: 1 | H28: 1904.58 | I28: 1904.58
B29: 110 | C29: TUBO C/ PONTAS PRFV L=1,50m DN 400 PN10 | D29: 465086 | E29: ET-1A-07-300 | F29: pç | G29: 1 | H29: 1616 | I29: 1616
B30: 111 | C30: CRUZETA PRFV JE BOLSA E PONTAS 500x150 PN10 | D30: 465086 | E30: ET-1A-07-300 | F30: pç | G30: 3 | H30: 2040 | I30: =ROUND((G30*H30),2) -> 6120
B31: 112 | C31: CRUZETA PRFV JE BOLSA E PONTAS 600x150 PN10 | D31: 465086 | E31: ET-1A-07-300 | F31: pç | G31: 1 | H31: 2637 | I31: 2637
B32: 113 | C32: CURVA PRFV 22º BOLSA JE E PONTA DN 600 PN10 | D32: 465086 | E32: ET-1A-07-300 | F32: pç | G32: 1 | H32: 1377.82 | I32: 1377.82
B33: 114 | C33: TE PRFV JE BOLSAS E PONTA 200x150 PN10 | D33: 465086 | E33: ET-1A-07-300 | F33: pç | G33: 4 | H33: 622.92 | I33: 2491.68
B34: 115 | C34: TE PRFV JE BOLSAS E PONTA 300x300 PN10 | D34: 465086 | E34: ET-1A-07-300 | F34: pç | G34: =2-1 -> 1 | H34: 1148 | I34: 1148
B35: 116 | C35: TE PRFV JE BOLSAS E PONTA 400x300 PN10 | D35: 465086 | E35: ET-1A-07-300 | F35: pç | G35: 1 | H35: 1672 | I35: 1672
B36: 117 | C36: TOCO C/ PONTA E BOLSA PRFV L=0,50m DN 600 PN10 | D36: 465086 | E36: ET-1A-07-300 | F36: pç | G36: 1 | H36: 1216.18 | I36: =ROUND((G36*H36),2) -> 1216.18
B37: 118 | C37: TUBO PRFV AGUA PN10 DN 500 | D37: 465086 | E37: ET-1A-07-300 | F37: m | G37: 31 | H37: 428.75 | I37: =ROUND((G37*H37),2) -> 13291.25
B38: 119 | C38: CURVA PRFV 90º BOLSA JE E PONTA DN 400 PN10 | D38: 465086 | E38: ET-1A-07-300 | F38: pç | G38: 1 | H38: 1219 | I38: 1219
B39: 120 | C39: REDUCAO PRFV JE BOLSA E PONTA 300x150 PN10 | D39: 465086 | E39: ET-1A-07-300 | F39: pç | G39: 3 | H39: 854 | I39: 2562
B40: 121 | C40: REDUCAO PRFV JE BOLSA E PONTA 250x150 PN10 | D40: 465086 | E40: ET-1A-07-300 | F40: pç | G40: =2-1 -> 1 | H40: 720 | I40: 720
B41: 122 | C41: REDUCAO PRFV JE BOLSA E PONTA 250x200 PN10 | D41: 465086 | E41: ET-1A-07-300 | F41: pç | G41: 1 | H41: 688 | I41: 688
B42: 123 | C42: TE PRFV JE BOLSAS E PONTA 200x200 PN10 | D42: 465086 | E42: ET-1A-07-300 | F42: pç | G42: 1 | H42: 731 | I42: 731
B43: 124 | C43: TE PRFV JE BOLSAS E PONTA 250x250 PN10 | D43: 465086 | E43: ET-1A-07-300 | F43: pç | G43: =5-1 -> 4 | H43: 975 | I43: 3900
B44: 125 | C44: TE PRFV JE BOLSAS E PONTA 300x150 PN10 | D44: 465086 | E44: ET-1A-07-300 | F44: pç | G44: 1 | H44: 885.96 | I44: 885.96
B45: 126 | C45: TE PRFV JE BOLSAS E PONTA 500x500 PN10 | D45: 465086 | E45: ET-1A-07-300 | F45: pç | G45: 1 | H45: 2695 | I45: 2695
B46: 127 | C46: REDUCAO PRFV JE BOLSA E PONTA 400x250 PN10 | D46: 465086 | E46: ET-1A-07-300 | F46: pç | G46: 1 | H46: 1282 | I46: 1282
B47: 128 | C47: CRUZETA PRFV BOLSA JE, PONTA, PONTA, PONTA 400x150 PN10 | D47: 465086 | E47: ET-1A-07-300 | F47: pç | G47: =5-3 -> 2 | H47: 1606 | I47: 3212
B48: 129 | C48: TE PRFV BOLSA JE, PONTA E BOLSA JE 400x400 PN10 | D48: 465086 | E48: ET-1A-07-300 | F48: pç | G48: =2-1 -> 1 | H48: 1857 | I48: 1857
B49: 130 | C49: TOCO PRFV C/ PONTAS L=0,50m DN 500 PN10 | D49: 465086 | E49: ET-1A-07-300 | F49: pç | G49: =2-1 -> 1 | H49: 957.65 | I49: 957.65
C51: VALOR TOTAL DA PLANILHA | I51: =SUM(I8:I49) -> 1548479.05
B53: Obs.: No preço total estão inclusas todas as despesas de fabricação, testes, manuais e fornecimento do insumos no canteiro obras.
